bitfinex-derivatives/quotes_SOLF0:USTF0_20250919
["timestamp","ask_amount","ask_price","bid_price","bid_amount"]
[1758289389012,7.06,241.8,241.79,0.02614187]
[1758289391321,3.7207,241.78,241.69,3.7219]
[1758289391716,3.7207,241.78,241.68,7.03]
[1758289391717,7.06,241.77,241.68,7.03]
[1758289392325,10.781,241.77,241.68,7.03]
[1758289394825,0.02638051,241.75,241.68,7.03]
[1758289395428,3.74768051,241.75,241.68,7.03]
[1758289395824,0.02638051,241.75,241.68,7.03]
[1758289399828,0.02638051,241.75,241.68,10.7521]
[1758289400934,0.02638051,241.75,241.68,7.03]
[1758289402840,7.06,241.74,241.63,7.03]
[1758289403538,3.7218,241.71,241.63,7.03]
[1758289405540,3.7218,241.71,241.63,10.7528]
[1758289406138,0.02611625,241.69,241.63,10.7528]
[1758289406536,0.02611625,241.69,241.63,7.03]
[1758289409838,3.7222,241.68,241.63,7.03]
[1758289410042,10.3122,241.68,241.63,7.03]
[1758289410242,10.3122,241.68,241.6,3.7233]
[1758289410243,10.3122,241.68,241.61,6.69]
[1758289410545,6.59,241.68,241.61,10.4132]
[1758289411142,10.3122,241.68,241.61,6.69]
[1758289411535,3.7225,241.67,241.61,6.69]
[1758289411741,6.59,241.68,241.61,6.69]
[1758289412447,10.3127,241.65,241.61,6.69]
[1758289412644,3.7227,241.65,241.57,10.4139]
[1758289413343,3.7227,241.65,241.57,6.69]
[1758289413539,3.723,241.63,241.57,6.69]
[1758289413938,10.3126,241.66,241.57,6.69]
[1758289414444,0.02620598,241.62,241.53,6.69]
[1758289414846,0.02620598,241.62,241.56,3.7239]
[1758289415141,0.02620598,241.62,241.57,6.69]
[1758289415748,0.02620598,241.62,241.55,6.69]
[1758289415944,6.59,241.61,241.51,6.69]
[1758289416447,3.7237,241.59,241.51,6.69]
[1758289416950,3.7239,241.57,241.51,6.69]
[1758289417147,6.59,241.61,241.51,6.69]
[1758289417545,10.3139,241.58,241.51,6.69]
[1758289417745,63.31,241.5,241.48,3.7251]
[1758289419850,63.31,241.5,241.49,0.81]
[1758289420444,63.31,241.5,241.49,1.23]
[1758289420445,31.20845771,241.5,241.49,1.23]
[1758289420647,6.59,241.62,241.5,0.81]
[1758289420956,6.59,241.62,241.53,0.81]
[1758289421650,10.3131,241.62,241.53,0.81]
[1758289422253,3.7234,241.6,241.53,0.81]
[1758289422550,6.59,241.59,241.49,0.81]
[1758289423358,3.7237,241.58,241.5,3.725]
[1758289425150,6.59,241.59,241.5,3.725]
[1758289426058,3.7239,241.58,241.5,3.725]
[1758289426251,3.7239,241.58,241.49,2.24332402]
[1758289426252,6.59,241.61,241.49,2.24332402]
[1758289426756,3.7236,241.59,241.49,2.24332402]
[1758289426954,6.59,241.59,241.49,2.24332402]
[1758289427154,6.59,241.59,241.49,0.81]
[1758289427458,6.59,241.55,241.47,105.8253]
[1758289428060,10.3143,241.55,241.47,102.1]
[1758289428759,3.7245,241.54,241.47,102.1]
[1758289429058,3.7245,241.54,241.46,0.81]
[1758289429255,6.59,241.55,241.46,0.81]
[1758289430257,3.7246,241.53,241.46,0.81]
[1758289430658,6.59,241.52,241.46,0.81]
[1758289430858,10.3148,241.52,241.43,1.43332402]
[1758289431359,3.725,241.51,241.42,0.81]
[1758289431558,6.59,241.5,241.42,0.81]
[1758289431859,10.3151,241.5,241.42,0.81]
[1758289432164,6.59,241.5,241.38,315.06332402]
[1758289432658,3.7253,241.48,241.39,3.7267]
[1758289433255,6.59,241.47,241.38,313.63]
[1758289433451,3.7257,241.46,241.38,0.81]
[1758289433757,3.7257,241.46,241.36,1.43332402]
[1758289433758,6.59,241.45,241.36,1.43332402]
[1758289433959,6.59,241.45,241.37,0.81]
[1758289435057,6.59,241.45,241.37,4.5369]
[1758289435563,6.59,241.45,241.39,3.7266]
[1758289435761,3.7253,241.49,241.4,0.81]
[1758289435953,6.59,241.5,241.42,1.43332402]
[1758289436860,6.59,241.5,241.43,3.726]
[1758289437763,10.3151,241.5,241.42,1.43332402]
[1758289438263,10.3151,241.5,241.42,5.15952402]
[1758289438664,10.3151,241.5,241.44,0.02614913]
[1758289438860,7.12,241.47,241.44,0.02614913]
[1758289439066,3.7253,241.48,241.44,0.02614913]
[1758289439266,3.7256,241.47,241.44,0.02614913]
[1758289439672,7.12,241.46,241.44,0.02614913]
[1758289440057,7.12,241.5,241.44,0.02614913]
[1758289440867,3.7255,241.47,241.44,0.02614913]
[1758289441063,7.12,241.46,241.44,0.02614913]
[1758289441366,7.12,241.51,241.44,0.02614913]
[1758289441568,3.725,241.5,241.44,0.02614913]
[1758289441970,7.12,241.51,241.44,0.02614913]
[1758289442171,3.7251,241.5,241.44,0.02614913]
[1758289443072,7.12,241.51,241.44,0.02614913]
[1758289443979,3.7242,241.55,241.47,0.82]
[1758289444184,7.12,241.56,241.47,0.82]
[1758289444376,3.7243,241.55,241.47,0.82]
[1758289444574,3.7243,241.55,241.46,3.7254]
[1758289444780,7.12,241.54,241.46,3.7254]
[1758289445076,1.43332402,241.54,241.34,7.4548]
[1758289445281,7.12,241.5,241.38,2.25332402]
[1758289446484,7.12,241.5,241.39,0.82]
[1758289446685,7.12,241.5,241.41,1.43332402]
[1758289446880,7.12,241.54,241.45,0.82]
[1758289447681,7.12,241.54,241.47,3.7253]
[1758289447881,7.12,241.54,241.45,0.82]
[1758289448077,1.43332402,241.53,241.41,2.25332402]
[1758289448278,7.12,241.52,241.41,2.25332402]
[1758289448982,10.8448,241.52,241.44,3.7258]
[1758289449281,7.12,241.52,241.41,2.25332402]
[1758289449584,7.12,241.52,241.46,3.7256]
[1758289450875,7.12,241.52,241.43,3.7259]
[1758289451987,7.12,241.52,241.45,3.7257]
[1758289452187,7.12,241.55,241.45,0.82]
[1758289452687,10.8443,241.55,241.47,3.7254]
[1758289453281,10.8443,241.55,241.45,0.82]
[1758289453682,10.8443,241.55,241.46,3.7254]
[1758289456089,7.12,241.55,241.46,1.43332402]
[1758289456491,7.12,241.55,241.46,5.15882402]
[1758289456791,7.12,241.55,241.46,1.43332402]
[1758289457890,7.12,241.55,241.46,5.15892402]
[1758289459492,7.12,241.55,241.47,3.7253]
[1758289460389,7.12,241.55,241.48,3.7252]
[1758289460596,7.12,241.55,241.47,0.82]
[1758289461391,7.12,241.55,241.51,3.7248]
[1758289461592,8.55332402,241.62,241.49,1.43332402]
[1758289461987,7.12,241.6,241.49,5.15832402]
[1758289462292,7.12,241.6,241.49,1.43332402]
[1758289462798,7.12,241.58,241.51,3.7247]
[1758289463095,57.9222,241.6,241.42,4.62181292]
[1758289463398,7.12,241.52,241.43,0.82]
[1758289463896,7.12,241.52,241.46,3.7255]
[1758289465104,7.12,241.52,241.44,3.7259]
[1758289465302,7.12,241.5,241.44,3.7259]
[1758289466595,7.12,241.52,241.43,0.82]
[1758289467397,7.12,241.52,241.44,57.9588]
[1758289467701,7.12,241.6,241.49,1.43332402]
[1758289468000,7.12,241.6,241.51,3.7247]
[1758289468906,10.8435,241.6,241.51,3.7247]
[1758289469298,7.12,241.6,241.49,1.43332402]
[1758289469601,6.62,241.57,241.49,1.43332402]
[1758289470101,3.7238,241.58,241.47,0.82]
[1758289470102,6.62,241.55,241.47,0.82]
[1758289470502,6.62,241.55,241.43,5.44181292]
[1758289470802,6.62,241.55,241.44,1.43332402]
[1758289471301,6.62,241.55,241.48,3.7252]
[1758289474011,6.62,241.55,241.49,3.725]
[1758289475098,6.62,241.61,241.51,3.7247]
[1758289475310,8.05332402,241.61,241.5,1.43332402]
[1758289475604,6.62,241.61,241.5,1.43332402]
[1758289476003,6.62,241.61,241.53,1.43332402]
[1758289476806,6.62,241.61,241.57,3.7239]
[1758289477706,6.62,241.61,241.58,3.7236]
[1758289477906,6.62,241.67,241.58,3.7236]
[1758289478103,6.62,241.67,241.56,1.43332402]
[1758289478306,6.62,241.67,241.58,1.43332402]
[1758289478707,6.62,241.67,241.6,3.7233]
[1758289480005,6.62,241.67,241.58,1.43332402]
[1758289480207,6.62,241.67,241.61,3.7231]
[1758289480910,6.62,241.67,241.59,3.7236]
[1758289481707,1.43332402,241.64,241.56,3.7239]
[1758289481912,6.62,241.63,241.56,3.7239]
[1758289482911,6.62,241.63,241.57,3.7238]
[1758289483308,6.62,241.63,241.56,1.43332402]
[1758289483614,6.62,241.63,241.56,2.25332402]
[1758289484014,6.62,241.63,241.59,1.43332402]
[1758289484215,6.62,241.63,241.59,2.25332402]
[1758289484512,6.62,241.69,241.61,3.7232]
[1758289484711,6.62,241.69,241.59,2.25332402]
[1758289484913,6.62,241.69,241.62,1.43332402]
[1758289485408,63.83774365,241.7,241.62,2.25332402]
[1758289485809,63.83774365,241.7,241.62,0.82]
[1758289486020,6.62,241.73,241.62,0.82]
[1758289487715,6.62,241.73,241.66,3.7225]
[1758289489216,6.62,241.73,241.67,3.7222]
[1758289489620,6.62,241.73,241.64,3.7227]
[1758289489816,6.62,241.73,241.62,0.82]
[1758289490514,6.62,241.73,241.66,3.7224]
[1758289491023,6.62,241.73,241.63,3.7229]
[1758289491515,6.62,241.73,241.62,0.82]
[1758289491717,6.62,241.73,241.63,3.7228]
[1758289491917,6.62,241.73,241.62,0.82]
[1758289493717,6.62,241.7,241.62,0.82]
[1758289494220,6.62,241.7,241.61,3.7231]
[1758289494418,6.62,241.7,241.59,0.82]
[1758289495524,6.62,241.7,241.63,3.7228]
[1758289495822,6.62,241.7,241.61,0.82]
[1758289496527,6.62,241.7,241.64,3.7227]
[1758289496724,6.62,241.7,241.61,0.82]
[1758289497326,6.62,241.71,241.61,0.82]
[1758289497823,3.7219,241.71,241.58,15.05196436]
[1758289498126,7.2,241.7,241.58,117.11196436]
[1758289498328,7.2,241.7,241.63,3.7228]
[1758289500233,7.2,241.7,241.61,0.81]
[1758289500736,3.7222,241.69,241.58,3.20665101]
[1758289500927,6.5,241.68,241.58,3.20665101]
[1758289501734,6.5,241.68,241.58,0.81]
[1758289501937,6.5,241.68,241.54,57.934]
[1758289501938,6.5,241.68,241.54,0.81]
[1758289502232,60.28225101,241.75,241.57,57.9279]
[1758289502233,6.5,241.72,241.57,57.9279]
[1758289502437,102.08,241.77,241.61,57.9184]
[1758289502737,2.39665101,241.79,241.61,57.9184]
[1758289502738,6.5,241.76,241.62,0.81]
[1758289502937,6.5,241.76,241.66,3.7224]
[1758289504132,6.5,241.76,241.67,3.7222]
[1758289504834,21.17665101,241.79,241.61,0.81]
[1758289505038,6.5,241.74,241.61,0.81]
[1758289506336,6.5,241.71,241.62,3.7231]
[1758289506538,6.5,241.71,241.61,0.81]
[1758289506738,3.7219,241.7,241.61,0.81]
[1758289507542,3.7222,241.68,241.6,3.7234]
[1758289507846,6.5,241.67,241.58,3.7237]
[1758289508533,6.5,241.67,241.59,3.7235]
[1758289508941,6.5,241.67,241.57,0.81]
[1758289509537,6.5,241.67,241.62,0.81]
[1758289509745,6.5,241.67,241.57,0.81]
[1758289510249,6.5,241.67,241.59,3.7235]
[1758289511035,10.2217,241.72,241.61,0.81]
[1758289511645,6.5,241.72,241.64,3.7227]
[1758289511846,6.5,241.72,241.64,4.5327]
[1758289513535,6.5,241.74,241.57,0.81]
[1758289513739,6.5,241.7,241.57,92.91]
[1758289514139,6.5,241.7,241.57,0.81]
[1758289514340,3.7222,241.69,241.57,0.81]
[1758289514544,6.5,241.7,241.57,0.81]
[1758289515447,3.7224,241.67,241.59,3.7235]
[1758289515650,6.5,241.7,241.57,0.81]
[1758289516550,6.5,241.68,241.57,0.81]
[1758289516749,6.5,241.67,241.53,0.81]
[1758289516947,6.5,241.62,241.53,4.5345]
[1758289517148,6.5,241.62,241.53,0.81]
[1758289517342,6.5,241.62,241.55,0.02611843]
[1758289519252,10.2232,241.62,241.55,0.02611843]
[1758289519547,2.39665101,241.71,241.56,0.81]
[1758289519749,6.5,241.7,241.59,0.81]
[1758289519955,6.5,241.7,241.63,3.7229]
[1758289520455,6.5,241.7,241.6,102.2]
[1758289520653,6.5,241.7,241.6,3.7234]
[1758289521550,6.5,241.7,241.59,0.81]
[1758289521746,64.3901,241.73,241.57,3.7238]
[1758289521952,6.5,241.67,241.57,3.7238]
[1758289522152,6.5,241.67,241.55,0.81]
[1758289523054,6.5,241.62,241.53,4.62181292]
[1758289523357,6.5,241.62,241.51,8.34651292]
[1758289523958,6.5,241.62,241.51,4.62181292]
[1758289524461,6.5,241.62,241.54,0.02616343]
[1758289526562,10.2231,241.62,241.54,0.02616343]
[1758289528862,3.7234,241.6,241.54,0.02616343]
[1758289529357,3.7234,241.6,241.52,3.7245]
[1758289529358,6.69,241.59,241.52,3.7245]
[1758289531062,6.69,241.59,241.5,4.535]
[1758289532259,6.69,241.59,241.5,0.81]
[1758289532466,6.69,241.59,241.47,3.7253]
[1758289532658,57.9218,241.6,241.45,44.48]
[1758289532858,6.69,241.53,241.44,4.5359]
[1758289533059,6.69,241.53,241.44,0.81]
[1758289533564,10.4146,241.53,241.44,4.5359]
[1758289534467,3.7248,241.52,241.44,3.7259]
[1758289534668,6.69,241.51,241.44,3.7259]
[1758289535166,57.9361,241.54,241.4,312.84]
[1758289535461,6.69,241.53,241.4,312.84]
[1758289535758,57.9361,241.54,241.4,312.84]
[1758289535759,57.9361,241.54,241.4,316.5665]
[1758289536155,10.4153,241.48,241.4,316.5665]
[1758289536561,6.69,241.48,241.4,316.5665]
[1758289538165,10.4154,241.48,241.4,316.5665]
[1758289538371,6.69,241.48,241.4,3.7265]
[1758289538869,6.69,241.58,241.39,0.81]
[1758289539371,6.69,241.52,241.43,3.7261]
[1758289539974,80.0268,241.58,241.41,3.7264]
[1758289539975,6.69,241.5,241.41,3.7264]
[1758289540969,10.4151,241.5,241.41,3.7264]
[1758289541168,6.69,241.5,241.41,3.7264]
[1758289544472,3.7253,241.49,241.41,3.7264]
[1758289544672,6.69,241.48,241.41,3.7264]
[1758289544872,6.69,241.48,241.39,0.81]
[1758289545073,3.7255,241.47,241.39,0.81]
[1758289545274,6.69,241.48,241.39,0.81]
[1758289545572,10.4154,241.48,241.39,0.81]
[1758289545775,11.85021024,241.48,241.39,0.81]
[1758289546075,8.12481024,241.48,241.39,0.81]
[1758289546772,3.7256,241.46,241.38,102.12]
[1758289546964,1.43481024,241.45,241.35,0.81]
[1758289547171,6.69,241.44,241.35,0.81]
[1758289547466,10.4159,241.44,241.35,4.5372]
[1758289548775,10.4159,241.44,241.35,0.81]
[1758289549275,3.7262,241.43,241.35,0.81]
[1758289549574,6.69,241.44,241.32,5.16241024]
[1758289549871,3.7264,241.41,241.32,105.9076]
[1758289550086,6.69,241.4,241.32,102.18]
[1758289551674,3.7267,241.39,241.31,4.5378]
[1758289551873,6.69,241.4,241.31,4.5378]
[1758289553082,6.69,241.4,241.31,0.81]
[1758289553779,6.69,241.4,241.32,3.7277]
[1758289554773,6.69,241.4,241.31,2.24481024]
[1758289554973,57.9304,241.56,241.35,0.81]
[1758289554974,6.69,241.46,241.35,0.81]
[1758289556381,3.7258,241.45,241.35,0.81]
[1758289556986,3.7258,241.45,241.35,4.5372]
[1758289557189,6.69,241.44,241.35,0.81]
[1758289558189,3.7257,241.46,241.39,3.7266]
[1758289558389,7.09,241.45,241.39,3.7266]
[1758289558891,7.09,241.45,241.37,3.727]
[1758289559191,7.09,241.43,241.35,0.81]
[1758289559593,7.09,241.47,241.36,0.82]
[1758289560688,7.09,241.47,241.38,0.82]
[1758289560889,7.09,241.5,241.38,0.82]
[1758289561990,1.43481024,241.49,241.37,100.09481024]
[1758289562190,1.43481024,241.46,241.34,2.25481024]
[1758289562396,7.09,241.45,241.34,104.47481024]
[1758289562701,3.7259,241.44,241.34,103.04]
[1758289563098,7.09,241.43,241.37,3.727]
[1758289563800,7.09,241.43,241.39,0.82]
[1758289564002,7.09,241.45,241.38,0.02624448]
[1758289564202,10.8159,241.45,241.38,0.02624448]
[1758289564900,7.09,241.45,241.38,0.02624448]
[1758289565799,7.09,241.45,241.38,3.75294448]
[1758289567797,7.09,241.58,241.39,0.82]
[1758289568001,7.09,241.51,241.39,0.82]
[1758289568202,7.09,241.51,241.42,0.82]
[1758289568707,1.43481024,241.52,241.46,3.7255]
[1758289568910,7.09,241.51,241.46,3.7255]
[1758289569204,7.09,241.54,241.46,3.7255]
[1758289570006,7.09,241.54,241.47,3.7253]
[1758289570410,7.09,241.54,241.43,57.961]
[1758289570613,7.09,241.54,241.45,0.82]
[1758289571204,7.09,241.54,241.49,3.725]
[1758289571410,7.09,241.55,241.46,59.38901024]
[1758289571609,7.09,241.55,241.46,1.43481024]
[1758289571809,7.09,241.55,241.45,0.82]
[1758289572109,7.09,241.57,241.51,3.7247]
[1758289572513,7.09,241.57,241.46,59.38811024]
[1758289572514,7.09,241.57,241.48,58.7694]
[1758289572701,7.09,241.57,241.48,60.20421024]
[1758289572901,7.38949,241.59,241.51,0.82]
[1758289573616,7.09,241.58,241.56,3.7239]
[1758289574514,7.09,241.58,241.53,4.5444]
[1758289574710,7.09,241.58,241.51,102.26]
[1758289574711,14.47949,241.59,241.49,0.82]
[1758289575611,14.47949,241.59,241.49,2.25481024]
[1758289575806,14.47949,241.59,241.51,57.9421]
[1758289576014,14.47949,241.59,241.52,0.82]
[1758289577317,7.38949,241.59,241.53,57.9373]
[1758289577512,7.38949,241.59,241.54,3.7242]
[1758289577717,7.09,241.58,241.54,3.7242]
[1758289578417,7.38949,241.59,241.54,3.7242]
[1758289578716,7.09,241.58,241.51,3.7247]
[1758289579113,8.52481024,241.58,241.51,3.7247]
[1758289579718,7.09,241.57,241.48,102.2]
[1758289580817,7.09,241.57,241.46,0.82]
[1758289581118,7.09,241.54,241.46,0.82]
[1758289581619,8.52481024,241.55,241.49,3.7251]
[1758289582216,7.09,241.55,241.49,3.7251]
[1758289584623,7.09,241.55,241.46,4.5455]
[1758289584822,1.43481024,241.54,241.41,0.82]
[1758289585124,1.43481024,241.51,241.41,35.88]
[1758289585325,7.09,241.5,241.41,35.88]
[1758289585520,7.09,241.5,241.44,3.7258]
[1758289587122,7.09,241.5,241.46,3.7256]
[1758289587427,7.09,241.54,241.47,0.82]
[1758289587620,7.09,241.54,241.49,3.7251]
[1758289587816,7.09,241.57,241.49,3.7251]
[1758289588119,7.09,241.57,241.47,0.82]
[1758289588827,7.09,241.57,241.49,1.43481024]
[1758289589023,7.09,241.57,241.52,3.7246]
[1758289589329,7.05,241.58,241.52,3.7246]
[1758289593229,7.05,241.58,241.53,4.5444]
[1758289593428,7.38949,241.59,241.53,3.7244]
[1758289593629,7.05,241.58,241.53,3.7244]
[1758289593829,7.38949,241.59,241.53,3.7244]
[1758289594030,7.05,241.58,241.5,3.7249]
[1758289594434,1.43481024,241.56,241.46,1.43481024]
[1758289594633,7.05,241.55,241.47,3.7253]
[1758289595833,7.05,241.53,241.44,3.7258]
[1758289596034,7.05,241.53,241.43,1.43481024]
[1758289596626,8.48481024,241.53,241.44,3.7259]
[1758289596928,7.05,241.49,241.41,0.82]
[1758289597531,7.05,241.49,241.43,3.7259]
[1758289597834,7.05,241.49,241.38,1.43481024]
[1758289598335,7.05,241.49,241.42,3.7261]
[1758289598830,7.05,241.49,241.39,3.7266]
[1758289599036,7.05,241.49,241.38,1.43481024]
[1758289599640,7.05,241.49,241.41,3.7263]
[1758289599934,7.05,241.46,241.41,0.02612742]
[1758289600638,1.43481024,241.44,241.41,0.02612742]
[1758289600837,7.05,241.43,241.32,0.82]
[1758289601037,7.05,241.4,241.32,0.82]
[1758289601842,7.05,241.4,241.3,3.728]
[1758289602839,7.05,241.4,241.32,3.7277]
[1758289603540,7.05,241.4,241.29,1.43481024]
[1758289604434,7.05,241.4,241.33,3.7276]
[1758289604634,7.05,241.4,241.32,1.43481024]
[1758289605842,7.05,241.4,241.35,3.7272]
[1758289606141,7.05,241.4,241.35,4.5472]
[1758289606343,7.05,241.4,241.37,3.727]
[1758289606839,7.05,241.44,241.37,3.727]
[1758289607040,7.05,241.48,241.38,0.82]
[1758289607944,7.05,241.48,241.41,3.7263]
[1758289608438,7.05,241.48,241.43,3.726]
[1758289608635,3.7245,241.54,241.4,57.9686]
[1758289608940,7.05,241.53,241.41,0.82]
[1758289609140,7.05,241.53,241.42,57.9635]
[1758289609445,7.05,241.53,241.43,57.9614]
[1758289609647,7.05,241.53,241.47,3.7254]
[1758289609836,7.05,241.53,241.44,102.98]
[1758289610040,7.05,241.58,241.47,2.2412373]
[1758289610242,7.05,241.58,241.48,0.82]
[1758289610745,0.02634182,241.55,241.5,3.7248]
[1758289610939,7.05,241.54,241.5,3.7248]
[1758289611847,0.02634182,241.55,241.52,3.7247]
[1758289612450,0.02634182,241.55,241.52,4.5447]
[1758289612945,0.02634182,241.55,241.54,4.5444]
[1758289616648,7.38949,241.59,241.58,0.82]
[1758289618244,1.01099,241.59,241.58,0.82]
[1758289618454,9e-05,241.59,241.58,103.36]
[1758289619953,9e-05,241.59,241.58,102.94]
[1758289621056,9e-05,241.59,241.58,103.36]
[1758289622358,6.57,241.78,241.62,57.9155]
[1758289622652,6.57,241.78,241.64,0.82]
[1758289623047,6.57,241.78,241.69,3.722]
[1758289623252,6.57,241.78,241.69,105.802]
[1758289623452,6.57,241.78,241.64,0.82]
[1758289623756,6.57,241.78,241.69,102.08]
[1758289624351,6.57,241.76,241.65,3.7225]
[1758289624654,6.57,241.78,241.65,102.08]
[1758289624860,6.57,241.78,241.61,0.82]
[1758289625153,6.57,241.74,241.64,3.7228]
[1758289625553,6.57,241.74,241.62,159.9943]
[1758289625755,6.57,241.78,241.65,0.82]
[1758289626163,6.57,241.78,241.7,3.7218]
[1758289626357,6.57,241.78,241.69,102.06]
[1758289626763,6.57,241.78,241.72,3.7216]
[1758289629456,6.57,241.78,241.69,105.7819]
[1758289629658,6.57,241.78,241.69,102.06]
[1758289630762,6.57,241.78,241.7,102.04]
[1758289631966,6.57,241.78,241.69,105.762]
[1758289632162,3.7208,241.77,241.69,105.762]
[1758289632673,3.7211,241.75,241.64,3.7227]
[1758289632881,3.7211,241.75,241.65,102.04]
[1758289632882,6.57,241.74,241.65,102.04]
[1758289633070,6.57,241.74,241.66,0.82]
[1758289633575,3.7208,241.78,241.68,3.7222]
[1758289633780,6.57,241.77,241.66,0.82]
[1758289634678,3.7213,241.74,241.66,0.82]
[1758289634884,3.7213,241.74,241.69,0.02614583]
[1758289635280,6.57,241.81,241.69,0.02614583]
[1758289635878,6.57,241.75,241.69,0.02614583]
[1758289637781,3.7218,241.71,241.69,0.02614583]
[1758289637986,57.8898,241.73,241.6,312.8]
[1758289638185,57.8829,241.76,241.6,312.8]
[1758289638488,6.57,241.75,241.61,0.82]
[1758289638886,10.2919,241.7,241.61,0.82]
[1758289639092,6.57,241.7,241.61,0.82]
[1758289639288,6.57,241.75,241.63,0.82]
[1758289639990,3.7214,241.73,241.65,3.7225]
[1758289640388,10.2911,241.75,241.66,3.7224]
[1758289640594,6.57,241.75,241.64,102.02]
[1758289640981,57.8757,241.79,241.64,102.02]
[1758289641491,57.8718,241.81,241.64,102.02]
[1758289641492,6.57,241.73,241.64,102.02]
[1758289641792,6.57,241.73,241.65,0.82]
[1758289642593,0.02613782,241.74,241.65,0.82]
[1758289642594,0.02613782,241.74,241.7,3.7219]
[1758289642788,0.02613782,241.74,241.71,0.82]
[1758289643586,0.02613782,241.74,241.7,102.02]
[1758289643792,0.02613782,241.74,241.73,0.82]
[1758289643987,6.57,241.87,241.75,57.8845]
[1758289644194,6.57,241.87,241.76,102.84]
[1758289644499,6.57,241.87,241.76,0.82]
[1758289644686,6.57,241.87,241.76,66.34]
[1758289645086,6.57,241.86,241.71,0.82]
[1758289645287,64.4215,241.89,241.71,0.82]
[1758289645487,3.7199,241.83,241.72,33.0016]
[1758289645689,57.8585,241.86,241.71,0.82]
[1758289645884,57.8666,241.83,241.7,27.7]
[1758289646089,10.2909,241.77,241.76,0.02650018]
[1758289646288,10.2909,241.77,241.67,83.58]
[1758289646692,6.57,241.76,241.74,0.02644433]
[1758289646892,3.7209,241.77,241.74,0.02644433]
[1758289647096,6.57,241.76,241.74,0.02644433]
[1758289647491,3.7209,241.77,241.74,0.02644433]
[1758289647796,57.8666,241.83,241.74,0.02644433]
[1758289647797,10.2911,241.75,241.74,0.02644433]
[1758289648499,6.57,241.75,241.74,0.02644433]
[1758289650696,7.09,241.76,241.64,61.6627]
[1758289651098,3.7213,241.74,241.64,61.6627]
[1758289651692,7.09,241.76,241.66,3.7225]
[1758289651890,7.09,241.76,241.66,4.5625]
[1758289652089,7.09,241.76,241.66,0.84]
[1758289652501,7.09,241.84,241.66,0.84]
[1758289653097,7.09,241.78,241.7,3.7219]
[1758289653299,7.09,241.78,241.66,0.84]
[1758289653502,3.7208,241.77,241.67,3.7222]
[1758289654700,3.7208,241.77,241.66,0.84]
[1758289654701,7.09,241.78,241.69,3.722]
[1758289655597,10.8107,241.78,241.69,3.722]
[1758289656100,7.09,241.78,241.69,3.722]
[1758289656502,7.09,241.78,241.69,4.562]
[1758289657202,0.02653871,241.76,241.71,4.5617]
[1758289657604,7.11653871,241.76,241.71,3.7217]
[1758289657797,0.02653871,241.76,241.72,4.5614]